bitfinex/quotes_BTCUSD_20241201
["timestamp","ask_amount","ask_price","bid_price","bid_amount"]
[1733022109224,0.009,95943.0,95942.0,0.01981685]
[1733022109461,0.0098629,95943.0,95942.0,0.01981685]
[1733022111865,0.0098629,95943.0,95942.0,0.0774669]
[1733022112083,0.0098629,95943.0,95942.0,0.08101958]
[1733022112528,0.0078629,95943.0,95942.0,0.08101958]
[1733022112743,0.0008629,95943.0,95942.0,0.08001958]
[1733022112977,0.0028629,95943.0,95942.0,0.08001958]
[1733022113178,0.0098629,95943.0,95942.0,0.08101958]
[1733022113388,0.0078629,95943.0,95942.0,0.08001958]
[1733022113592,0.0078629,95943.0,95942.0,0.08101958]
[1733022113798,0.0078629,95943.0,95942.0,0.08201958]
[1733022114251,0.0078629,95943.0,95942.0,0.08101958]
[1733022114464,0.0008629,95943.0,95942.0,0.46414898]
[1733022114676,0.1289,95967.0,95966.0,0.01881685]
[1733022115994,0.12907941,95967.0,95966.0,0.02233464]
[1733022116839,0.13207941,95967.0,95966.0,0.02233464]
[1733022117050,0.13207941,95967.0,95966.0,0.01881685]
[1733022117475,0.13207941,95967.0,95966.0,0.02233464]
[1733022117697,0.14107941,95967.0,95966.0,0.01981685]
[1733022117917,0.01217941,95967.0,95966.0,0.04615833]
[1733022118869,0.01217941,95967.0,95966.0,0.02333464]
[1733022119081,0.00917941,95967.0,95966.0,0.01981685]
[1733022119292,0.01217941,95967.0,95966.0,0.02333257]
[1733022119503,0.00317941,95967.0,95966.0,0.02233257]
[1733022119851,0.00017941,95967.0,95966.0,0.02233257]
[1733022120088,0.01217941,95967.0,95966.0,0.02333257]
[1733022120302,0.00317941,95967.0,95966.0,0.02233257]
[1733022120505,0.01217941,95967.0,95966.0,0.04659205]
[1733022120747,0.01217941,95967.0,95966.0,0.01981685]
[1733022121818,0.01304221,95967.0,95966.0,0.01981685]
[1733022122352,0.24518742,95967.0,95966.0,0.001]
[1733022128869,0.24518742,95967.0,95966.0,0.01981685]
[1733022128870,0.01304221,95967.0,95966.0,0.01981685]
[1733022129093,0.01304221,95967.0,95966.0,0.04448408]
[1733022129303,0.01304221,95967.0,95966.0,0.04800102]
[1733022129731,0.01004221,95967.0,95966.0,0.04800102]
[1733022129940,0.00104221,95967.0,95966.0,0.04700102]
[1733022130181,0.00304221,95967.0,95966.0,0.04700102]
[1733022130388,0.00904221,95967.0,95966.0,0.04800102]
[1733022131848,0.00704221,95967.0,95966.0,0.04800102]
[1733022132293,0.26384621,95967.0,95966.0,0.01492379]
[1733022132499,0.25784621,95967.0,95966.0,0.00451694]
[1733022132713,0.25784621,95967.0,95965.0,0.00941]
[1733022132714,0.208407,95966.0,95965.0,0.00941]
[1733022133554,0.05644221,95967.0,95965.0,0.00941]
[1733022133784,0.25784621,95967.0,95965.0,0.00941]
[1733022133998,0.208413,95963.0,95960.0,0.00941]
[1733022134458,0.416827,95963.0,95960.0,0.00941]
[1733022134925,0.17944521,95966.0,95960.0,0.00941]
[1733022134926,0.10284521,95966.0,95965.0,0.00940685]
[1733022135147,0.10284521,95966.0,95960.0,0.00941]
[1733022135363,0.10284521,95966.0,95964.0,0.00940685]
[1733022135364,0.208409,95965.0,95964.0,0.00940685]
[1733022135590,0.31125421,95965.0,95964.0,0.00940685]
[1733022136943,0.31525421,95965.0,95964.0,0.00940685]
[1733022137460,0.10684521,95965.0,95960.0,0.00941]
[1733022137683,0.208411,95964.0,95963.0,0.00940685]
[1733022139138,0.212411,95964.0,95963.0,0.00940685]
[1733022141527,0.004,95964.0,95963.0,0.00940685]
[1733022142444,0.212413,95964.0,95960.0,0.00941]
[1733022142675,0.212413,95964.0,95963.0,0.00940685]
[1733022143367,0.208413,95964.0,95963.0,0.00940685]
[1733022143628,0.212413,95964.0,95963.0,0.00940685]
[1733022143848,0.208413,95964.0,95963.0,0.00940685]
[1733022144273,0.212413,95964.0,95963.0,0.00940685]
[1733022152161,0.420826,95964.0,95960.0,0.00941]
[1733022152405,0.420826,95964.0,95963.0,0.00940685]
[1733022153049,0.416826,95964.0,95963.0,0.00940685]
[1733022153260,0.420826,95964.0,95963.0,0.00940685]
[1733022153755,0.416826,95964.0,95963.0,0.00940685]
[1733022153973,0.420826,95964.0,95963.0,0.00940685]
[1733022156396,0.420826,95964.0,95963.0,0.01292185]
[1733022159187,0.420826,95964.0,95963.0,0.003515]
[1733022159425,0.420826,95964.0,95963.0,0.00940685]
[1733022159677,0.420826,95964.0,95963.0,0.01292185]
[1733022160660,0.420826,95964.0,95963.0,0.003515]
[1733022160941,0.420826,95964.0,95963.0,0.01292185]
[1733022161201,0.420826,95964.0,95963.0,0.00940685]
[1733022161461,0.420826,95964.0,95963.0,0.01292185]
[1733022163640,0.212413,95964.0,95963.0,0.01292185]
[1733022163889,0.20433701,95964.0,95963.0,0.01292185]
[1733022164358,0.20433701,95964.0,95963.0,0.03960221]
[1733022165703,0.20433701,95964.0,95963.0,0.03019536]
[1733022165934,0.20433701,95964.0,95963.0,0.03960221]
[1733022166176,0.004,95964.0,95963.0,0.03960221]
[1733022167630,0.004,95964.0,95963.0,0.1896066]
[1733022167848,0.004,95964.0,95963.0,0.04901221]
[1733022168076,0.004,95964.0,95963.0,0.19245087]
[1733022168296,0.004,95964.0,95963.0,0.05185648]
[1733022168501,0.004,95964.0,95963.0,0.05085648]
[1733022168712,0.0008627,95965.0,95964.0,0.217821]
[1733022168933,0.0008627,95965.0,95964.0,0.32065246]
[1733022169151,0.0008627,95965.0,95964.0,0.33005931]
[1733022169364,0.0008627,95965.0,95964.0,0.33357282]
[1733022170341,0.0008627,95965.0,95964.0,0.33557282]
[1733022171284,0.0008627,95965.0,95964.0,0.33657282]
[1733022180417,0.0008627,95965.0,95964.0,0.12816182]
[1733022180648,0.0008627,95965.0,95964.0,0.13000596]
[1733022180865,0.0008627,95965.0,95964.0,0.36418975]
[1733022181079,0.0008627,95965.0,95964.0,0.12816182]
[1733022181311,0.0008627,95965.0,95964.0,0.13000592]
[1733022181822,0.0008627,95965.0,95964.0,0.12800592]
[1733022182031,0.0008627,95965.0,95964.0,0.12700592]
[1733022182239,0.0008627,95965.0,95964.0,0.12800592]
[1733022182883,0.0008627,95965.0,95964.0,0.13100592]
[1733022183107,0.0008627,95965.0,95964.0,0.12700592]
[1733022183324,0.0008627,95965.0,95964.0,0.13200592]
[1733022183733,0.0008627,95965.0,95964.0,0.13100592]
[1733022184143,0.0018627,95965.0,95964.0,0.13200592]
[1733022184914,0.0018627,95965.0,95964.0,0.17990592]
[1733022185115,0.0018627,95965.0,95964.0,0.72377168]
[1733022185315,0.0018627,95965.0,95964.0,0.44090703]
[1733022185765,0.0018627,95965.0,95964.0,0.85585143]
[1733022186288,0.0008627,95965.0,95964.0,0.43990703]
[1733022186604,0.0008627,95965.0,95964.0,0.43690703]
[1733022186823,0.0018627,95965.0,95964.0,0.43690703]
[1733022186952,0.0028627,95965.0,95964.0,0.44390703]
[1733022187860,0.0028627,95965.0,95964.0,0.33106182]
[1733022188069,0.0028627,95965.0,95964.0,0.13316182]
[1733022188250,0.0028627,95965.0,95964.0,0.13500593]
[1733022189769,0.0028627,95965.0,95964.0,0.36894921]
[1733022189986,0.0028627,95965.0,95964.0,0.13316182]
[1733022190203,0.0028627,95965.0,95964.0,0.13500598]
[1733022194555,0.0028627,95965.0,95964.0,0.13673218]
[1733022194772,0.0028627,95965.0,95964.0,0.37067546]
[1733022194983,0.0028627,95965.0,95964.0,0.3688313]
[1733022195364,0.0028627,95965.0,95964.0,0.13488802]
[1733022195574,0.0028627,95965.0,95964.0,0.13673219]
[1733022198288,0.0028627,95965.0,95964.0,0.37067547]
[1733022198492,0.0028627,95965.0,95964.0,0.13488802]
[1733022198711,0.0028627,95965.0,95964.0,0.1367322]
[1733022203058,0.0028627,95965.0,95964.0,0.37067548]
[1733022203259,0.0028627,95965.0,95964.0,0.3688313]
[1733022206499,0.0028627,95965.0,95964.0,0.26599984]
[1733022206905,0.0028627,95965.0,95964.0,0.26614443]
[1733022207475,0.0028627,95965.0,95964.0,0.03205656]
[1733022207678,0.0028627,95965.0,95964.0,0.03390075]
[1733022212427,0.0028627,95965.0,95964.0,0.26817742]
[1733022212631,0.0028627,95965.0,95964.0,0.31700647]
[1733022213054,0.0028627,95965.0,95964.0,0.0827298]
[1733022213253,0.0028627,95965.0,95964.0,0.08457399]
[1733022215180,0.0028627,95965.0,95964.0,0.36077399]
[1733022215390,0.0028627,95965.0,95964.0,0.47177501]
[1733022217129,0.253851,95992.0,95968.0,0.01]
[1733022217361,0.253851,95992.0,95986.0,0.01881685]
[1733022217747,0.253851,95992.0,95986.0,0.16281025]
[1733022219090,0.0037284,95987.0,95986.0,0.16281025]
[1733022220432,0.0037284,95987.0,95986.0,0.02229458]
[1733022220889,0.0017284,95987.0,95986.0,0.02413837]
[1733022221101,0.0017284,95987.0,95986.0,0.11348551]
[1733022221527,0.0017284,95987.0,95986.0,0.299777]
[1733022221736,0.0017284,95987.0,95986.0,0.11064172]
[1733022221737,0.0027284,95987.0,95986.0,0.11064172]
[1733022221945,0.0017284,95987.0,95986.0,0.29975198]
[1733022222125,0.0017284,95987.0,95986.0,0.29790818]
[1733022222365,0.0017284,95987.0,95986.0,0.11064172]
[1733022222575,0.0017284,95987.0,95986.0,0.11248547]
[1733022223176,0.0017284,95987.0,95986.0,0.11448547]
[1733022231628,0.0017284,95987.0,95986.0,0.34818521]
[1733022231836,0.0017284,95987.0,95986.0,0.34634146]
[1733022232051,0.0017284,95987.0,95986.0,0.11264172]
[1733022232262,0.0017284,95987.0,95986.0,0.11448534]
[1733022233087,0.0017284,95987.0,95986.0,0.49883055]
[1733022233305,0.0017284,95987.0,95986.0,0.49698693]
[1733022233954,0.0017284,95987.0,95986.0,0.49498693]
[1733022234166,0.0017284,95987.0,95986.0,0.78750226]
[1733022234378,0.0017284,95987.0,95986.0,2.50698693]
[1733022235220,0.0488631,96012.0,96011.0,0.01881685]
[1733022235433,0.0488631,96012.0,96011.0,0.06236134]
[1733022235651,0.04904251,96012.0,96011.0,0.06578859]
[1733022236785,0.04904251,96012.0,96011.0,0.06778859]
[1733022237003,0.00104251,96012.0,96011.0,0.06778859]
[1733022237222,0.00104251,96012.0,96011.0,0.06963193]
[1733022240162,0.048,96027.0,96026.0,0.48941124]
[1733022240375,0.048,96027.0,96026.0,0.58000976]
[1733022240723,0.048,96027.0,96026.0,0.58341951]
[1733022241700,0.051,96027.0,96026.0,0.58441951]
[1733022241985,0.053,96027.0,96026.0,0.58441951]
[1733022242837,0.051,96027.0,96026.0,0.58441951]
[1733022243048,0.15484521,96027.0,96026.0,0.48441099]
[1733022243260,0.23124521,96027.0,96026.0,0.48100124]
[1733022243468,0.22824521,96027.0,96026.0,0.53245211]
[1733022243879,0.23124521,96027.0,96026.0,0.53245211]
[1733022244092,0.22824521,96027.0,96026.0,0.06185772]
[1733022244294,0.23124521,96027.0,96026.0,0.0138166]
[1733022244512,0.23124521,96027.0,96026.0,0.001]
[1733022244725,0.208294,96018.0,96017.0,0.00940685]
[1733022244951,0.208294,96018.0,96011.0,0.00017941]
[1733022244952,0.0457,96017.0,96016.0,0.00940685]
[1733022245182,0.416596,96016.0,96012.0,0.00941]
[1733022245385,0.208302,96014.0,96012.0,0.00941]
[1733022245598,0.10284521,96013.0,96012.0,0.00941]
[1733022245802,0.10284521,96013.0,96012.0,0.01881685]
[1733022247321,0.10584521,96013.0,96012.0,0.01881685]
[1733022247523,0.10284521,96013.0,96012.0,0.01881685]
[1733022247925,0.10584521,96013.0,96012.0,0.01881685]
[1733022248127,0.10284521,96013.0,96012.0,0.01881685]
[1733022248341,0.10384521,96013.0,96012.0,0.01881685]
[1733022248548,0.10684521,96013.0,96012.0,0.01881685]
[1733022248755,0.10584521,96013.0,96012.0,0.01881685]
[1733022249236,0.10684521,96013.0,96012.0,0.01881685]
[1733022252585,0.10684521,96013.0,96012.0,0.02054185]
[1733022254468,0.004,96013.0,96012.0,0.02054185]
[1733022254888,0.004,96013.0,96012.0,0.03364957]
[1733022255569,0.003,96013.0,96012.0,0.03364957]
[1733022255789,0.003,96013.0,96012.0,0.03549287]
[1733022256225,0.003,96013.0,96012.0,0.03364957]
[1733022256451,0.0457,96017.0,96016.0,0.00940685]
[1733022256671,0.0457,96017.0,96016.0,0.01881685]
[1733022257731,0.0457,96017.0,96016.0,0.04269539]
[1733022257935,0.0487,96017.0,96016.0,0.04269539]
[1733022258160,0.0487,96017.0,96016.0,0.04604708]
[1733022258599,0.0497,96017.0,96016.0,0.04604708]
[1733022259054,0.0497,96017.0,96016.0,0.02216854]
[1733022259474,0.0497,96017.0,96016.0,0.01881685]
[1733022264041,0.004,96017.0,96016.0,0.01881685]
[1733022264257,0.2091375,96027.0,96016.0,0.01881685]
[1733022264490,0.2091375,96027.0,96026.0,0.00941]
[1733022265617,0.2111375,96027.0,96026.0,0.00941]
[1733022265859,0.2091375,96027.0,96026.0,0.00941]
[1733022266278,0.2141375,96027.0,96026.0,0.00941]
[1733022266493,0.2111375,96027.0,96026.0,0.00941]
[1733022266706,0.2141375,96027.0,96026.0,0.00941]
[1733022269254,0.31698271,96027.0,96026.0,0.00941]
[1733022269504,0.31698271,96027.0,96019.0,0.01881685]
[1733022269505,0.253883,96023.0,96019.0,0.01881685]
[1733022269713,0.10284521,96022.0,96020.0,0.00940685]
[1733022269915,0.10284521,96022.0,96021.0,0.00940685]
[1733022270541,0.31113121,96022.0,96020.0,0.00940685]
[1733022270801,0.31113121,96022.0,96019.0,0.00941]
[1733022271015,0.31413121,96022.0,96020.0,0.00940685]
[1733022271243,0.0456,96019.0,96017.0,0.00940685]
[1733022271458,0.23154521,96018.0,96017.0,0.00940685]
[1733022272941,0.416592,96017.0,96016.0,0.00940685]
[1733022273151,0.31114121,96017.0,96016.0,0.00940685]
[1733022273991,0.35904121,96017.0,96016.0,0.00940685]
[1733022274409,0.36504121,96017.0,96016.0,0.01040685]
[1733022275641,0.36504121,96017.0,96016.0,0.01213185]
[1733022275800,0.36904121,96017.0,96016.0,0.01213185]
[1733022277069,0.36904121,96017.0,96016.0,0.002725]
[1733022277494,0.36904121,96017.0,96016.0,0.01213185]
[1733022278113,0.36904121,96017.0,96016.0,0.002725]
[1733022278326,0.36904121,96017.0,96016.0,0.01213185]
[1733022278778,0.38017657,96017.0,96016.0,0.01213185]
[1733022280079,0.38017657,96017.0,96016.0,0.002725]
[1733022283752,0.3801245,96017.0,96016.0,0.002725]
[1733022292383,0.3322245,96017.0,96016.0,0.002725]
[1733022292612,0.3322245,96017.0,96016.0,0.012135]
[1733022293012,0.3322245,96017.0,96016.0,0.02151894]
[1733022294311,0.22937929,96017.0,96016.0,0.03092579]
[1733022294528,0.01,96017.0,96016.0,0.03428266]
[1733022295205,0.01,96017.0,96016.0,0.11408266]
[1733022295422,0.006,96017.0,96016.0,0.11408266]
[1733022296629,0.006,96017.0,96016.0,0.30315992]
[1733022296828,0.006,96017.0,96016.0,0.11408266]
[1733022297036,0.0008625,96023.0,96022.0,0.00940685]
[1733022297235,0.0008625,96023.0,96022.0,0.18703649]
[1733022297470,0.0008625,96023.0,96022.0,0.05001045]
[1733022297967,0.0008625,96023.0,96022.0,0.19036256]
[1733022298423,0.0008625,96023.0,96022.0,0.05001045]
[1733022298792,0.0038625,96023.0,96022.0,0.05001045]
[1733022302175,0.0038625,96023.0,96022.0,0.05942045]
[1733022302411,0.0038625,96023.0,96022.0,0.13936363]
[1733022304465,0.0038625,96023.0,96022.0,0.27959995]
[1733022304671,0.0038625,96023.0,96022.0,0.27775677]
[1733022304867,0.0038625,96023.0,96022.0,0.13752045]
[1733022305097,0.0038625,96023.0,96022.0,0.13936354]
[1733022311286,0.0038625,96023.0,96022.0,0.13752045]
[1733022313257,0.0038625,96023.0,96022.0,0.13936355]
[1733022314767,0.0038625,96023.0,96022.0,0.13936345]
[1733022315690,0.0008625,96023.0,96022.0,0.13936345]
[1733022315897,0.0008625,96023.0,96022.0,0.14336345]
[1733022316114,0.0008625,96023.0,96022.0,0.14836345]
[1733022316551,0.0008625,96023.0,96022.0,0.14652045]
[1733022317611,0.0008625,96023.0,96022.0,0.28658058]
[1733022318894,0.0008625,96023.0,96022.0,0.14652045]
[1733022319750,0.0008625,96023.0,96022.0,0.14252045]
[1733022320146,0.0008625,96023.0,96022.0,0.14652045]
[1733022320400,0.00075212,96023.0,96022.0,0.14152045]
[1733022320905,0.00075212,96023.0,96022.0,0.14736344]
[1733022321162,0.00075212,96023.0,96022.0,0.28740832]
[1733022321403,0.00075212,96023.0,96022.0,0.28556533]
[1733022322337,0.00075212,96023.0,96022.0,0.14552045]
[1733022324742,0.00075212,96023.0,96022.0,0.44695353]
[1733022324983,0.00075212,96023.0,96022.0,0.30506566]
[1733022325410,0.00075212,96023.0,96022.0,0.49179217]
[1733022325716,0.0008628,96047.0,96046.0,0.01881685]
[1733022325967,0.0008628,96047.0,96046.0,0.04940244]
[1733022326227,0.0008628,96047.0,96046.0,0.05271315]
[1733022327219,0.0094606,96047.0,96046.0,0.05371315]
[1733022327669,0.0094606,96047.0,96046.0,0.02312756]
[1733022327914,0.0044606,96047.0,96046.0,0.02212756]
[1733022328335,0.0094606,96047.0,96046.0,0.02312756]
[1733022328544,0.0044606,96047.0,96046.0,0.02212756]
[1733022328751,0.0044606,96047.0,96046.0,0.01881685]
[1733022328968,0.0014606,96047.0,96046.0,0.02876281]
[1733022329399,0.0044606,96047.0,96046.0,0.02876281]
[1733022329826,0.0014606,96047.0,96046.0,0.02876281]
[1733022330059,0.0064606,96047.0,96046.0,0.02976281]
[1733022330280,0.0064606,96047.0,96046.0,0.03076281]
[1733022330528,0.0014606,96047.0,96046.0,0.02976281]
[1733022330932,0.0014606,96047.0,96046.0,0.01981685]
[1733022331130,0.0034606,96047.0,96046.0,0.01981685]
[1733022334072,0.0034606,96047.0,96046.0,0.01467128]
[1733022337344,0.0034606,96047.0,96046.0,0.01651392]
[1733022338270,0.0034606,96047.0,96046.0,0.01467128]
[1733022338480,0.0034606,96047.0,96046.0,0.03150423]
[1733022342217,0.0034606,96047.0,96046.0,0.01467128]
[1733022342668,0.1273606,96047.0,96046.0,0.01467128]
[1733022343310,0.1273606,96047.0,96046.0,0.00985685]
[1733022343525,0.1273606,96047.0,96046.0,0.001]
[1733022344155,0.1273606,96047.0,96046.0,0.00985685]
[1733022345249,0.1273606,96047.0,96046.0,0.001]
[1733022345449,0.1273606,96047.0,96046.0,0.00985685]
[1733022345909,0.1273606,96047.0,96046.0,0.001]
[1733022346745,0.23020581,96047.0,96046.0,0.001]
[1733022347404,0.23020581,96047.0,96039.0,0.0017248]
[1733022347405,0.18090581,96047.0,96039.0,0.0017248]
[1733022347614,0.208246,96040.0,96039.0,0.0017248]
[1733022347820,0.254946,96040.0,96039.0,0.0017248]
[1733022348706,0.335346,96040.0,96039.0,0.0017248]
[1733022348909,0.339346,96040.0,96039.0,0.0017248]
[1733022349335,0.340346,96040.0,96039.0,0.0017248]
[1733022352225,0.259946,96040.0,96039.0,0.0017248]
[1733022353295,0.0517,96040.0,96039.0,0.0017248]
[1733022353522,0.0517,96040.0,96039.0,0.01058165]
[1733022353523,0.005,96040.0,96039.0,0.01058165]
[1733022353738,0.005,96040.0,96039.0,0.03246532]
[1733022353958,0.005,96040.0,96039.0,0.03728868]
[1733022354173,0.001,96040.0,96039.0,0.03728868]
[1733022354389,0.0014606,96047.0,96046.0,0.00885685]
[1733022354834,0.0014606,96047.0,96046.0,0.01367416]
[1733022355052,0.0014606,96047.0,96046.0,0.03340981]
[1733022355695,0.0104606,96047.0,96046.0,0.03922712]
[1733022357996,0.0104606,96047.0,96046.0,0.01467416]
[1733022358431,0.0104606,96047.0,96046.0,0.00985685]
[1733022359317,0.0104606,96047.0,96046.0,0.01158305]
[1733022360838,0.0104606,96047.0,96046.0,0.01640036]
[1733022362008,0.0104606,96047.0,96046.0,0.01158305]
[1733022363313,0.0571606,96047.0,96046.0,0.01158305]
[1733022363525,0.16000581,96047.0,96046.0,0.0027262]
[1733022365271,0.1711784,96047.0,96046.0,0.0027262]
[1733022365940,0.0104606,96047.0,96046.0,0.0027262]
[1733022367247,0.11330581,96047.0,96046.0,0.0027262]
[1733022367477,0.15960581,96047.0,96046.0,0.0027262]
[1733022374171,0.24160581,96047.0,96046.0,0.0027262]
[1733022378978,0.24001364,96047.0,96046.0,0.0027262]
[1733022381895,0.24087674,96047.0,96046.0,0.0027262]
[1733022382299,0.05603153,96047.0,96046.0,0.0027262]
[1733022388354,0.05603153,96047.0,96046.0,0.01052964]
[1733022388552,0.05603153,96047.0,96046.0,0.0027262]
[1733022388797,0.05603153,96047.0,96046.0,0.01052976]
[1733022389006,0.05603153,96047.0,96046.0,0.01052975]
[1733022389196,0.05603153,96047.0,96046.0,0.0027262]
[1733022389429,0.05603153,96047.0,96046.0,0.01053132]
[1733022390064,0.05603153,96047.0,96046.0,0.0027262]
[1733022390283,0.05603153,96047.0,96046.0,0.01053138]
[1733022390483,0.05603153,96047.0,96046.0,0.0027262]
[1733022394518,0.15887674,96047.0,96046.0,0.0027262]
[1733022398416,0.15866976,96047.0,96046.0,0.0027262]
[1733022399103,0.05582455,96047.0,96046.0,0.0027262]
[1733022399394,0.00952455,96047.0,96046.0,0.0027262]
[1733022399602,0.00952455,96047.0,96046.0,0.01170699]
[1733022399809,0.00952455,96047.0,96046.0,0.01651939]
[1733022409063,0.00952455,96047.0,96046.0,0.01151939]
[1733022410251,0.00952455,96047.0,96046.0,0.0048124]
[1733022410462,0.00952455,96047.0,96042.0,0.14929773]
[1733022410672,0.00952455,96047.0,96046.0,0.00480921]
[1733022410905,0.00952455,96047.0,96042.0,0.14929773]
[1733022411108,0.00952455,96047.0,96046.0,0.00480921]
[1733022411319,0.00952455,96047.0,96042.0,0.14929773]
[1733022411567,0.00952455,96047.0,96046.0,0.00480921]
[1733022411785,0.00952455,96047.0,96043.0,0.10283146]
[1733022411991,0.00752455,96047.0,96046.0,0.00480921]
[1733022412251,0.0008631,96047.0,96042.0,0.14931525]
[1733022412440,0.0098631,96047.0,96046.0,0.00480921]
[1733022412589,0.0098631,96047.0,96042.0,0.15031525]
[1733022412792,0.0008631,96047.0,96043.0,0.10283146]
[1733022412990,0.0008631,96047.0,96044.0,0.00481094]
[1733022412991,0.0078631,96047.0,96044.0,0.00481094]
[1733022413236,0.0098631,96047.0,96043.0,0.001]
[1733022413444,0.0098631,96047.0,96044.0,0.00481094]
[1733022413661,0.0168631,96047.0,96046.0,0.001]
[1733022413870,0.0008631,96047.0,96046.0,0.00480921]
[1733022414082,0.0008631,96047.0,96042.0,0.00885685]
[1733022414299,0.0078631,96047.0,96044.0,0.001]
[1733022415430,0.0028631,96047.0,96042.0,0.01058305]
[1733022415854,0.0088631,96047.0,96046.0,0.001]
[1733022416064,0.2110951,96047.0,96042.0,0.01058305]
[1733022416275,0.0028631,96047.0,96042.0,0.01058305]
[1733022416481,0.0068631,96047.0,96044.0,0.001]
[1733022416688,0.0028631,96047.0,96042.0,0.01058305]
[1733022417098,0.0088631,96047.0,96046.0,0.001]
[1733022417310,0.0028631,96047.0,96042.0,0.01058305]
[1733022418569,0.0008631,96047.0,96042.0,0.01058305]
[1733022418779,0.0088631,96047.0,96044.0,0.001]
[1733022419402,0.0068631,96047.0,96044.0,0.001]
[1733022419540,0.0088631,96047.0,96044.0,0.001]
[1733022419902,0.0148631,96047.0,96044.0,0.001]
[1733022420134,0.0148631,96047.0,96042.0,0.01058305]
[1733022420135,0.0008631,96047.0,96042.0,0.01058305]
[1733022420595,0.0028631,96047.0,96042.0,0.01058305]
[1733022421387,0.2110941,96047.0,96042.0,0.01058305]
[1733022421581,0.0028631,96047.0,96042.0,0.01058305]
[1733022422188,0.2110951,96047.0,96042.0,0.01058305]
[1733022422466,0.0028631,96047.0,96042.0,0.01058305]
[1733022422643,0.0068631,96047.0,96042.0,0.01158305]
[1733022422899,0.0088631,96047.0,96042.0,0.01158305]
[1733022423282,0.2170941,96047.0,96042.0,0.01158305]
[1733022423487,0.0088631,96047.0,96042.0,0.01158305]
[1733022424546,0.0088631,96047.0,96042.0,0.08852287]
[1733022424751,0.0088631,96047.0,96043.0,0.00481239]
[1733022425726,0.0068631,96047.0,96043.0,0.00481239]
[1733022425935,0.0068631,96047.0,96044.0,0.01248912]
[1733022426151,0.0028631,96047.0,96045.0,0.01248912]
[1733022426354,0.0088631,96047.0,96046.0,0.01248912]
[1733022426553,0.0088631,96047.0,96046.0,0.05596852]
[1733022426733,0.0068631,96047.0,96046.0,0.06077832]
[1733022426930,0.0088631,96047.0,96046.0,0.06077832]
[1733022427163,0.0088631,96047.0,96046.0,0.01729892]
[1733022427538,0.0068631,96047.0,96046.0,0.01729892]
[1733022428124,0.0008631,96047.0,96046.0,0.01729892]
[1733022428538,0.0068631,96047.0,96046.0,0.01829892]
[1733022428950,0.0088631,96047.0,96046.0,0.01829892]
[1733022436793,0.0088631,96047.0,96046.0,0.0826144]
[1733022436988,0.0088631,96047.0,96046.0,0.01829892]
[1733022437223,0.0088631,96047.0,96046.0,0.0058098]
[1733022437476,0.0088631,96047.0,96046.0,0.01830903]
[1733022438652,0.0088631,96047.0,96046.0,0.15879645]
[1733022438848,0.00726521,96047.0,96046.0,0.15879645]
[1733022439123,0.00726521,96047.0,96046.0,0.22570311]
[1733022439998,0.00726521,96047.0,96046.0,0.08521569]
[1733022440383,0.00726521,96047.0,96046.0,0.07271646]
[1733022440586,0.00726521,96047.0,96046.0,0.08521371]
[1733022442975,0.00726521,96047.0,96046.0,0.23457141]
[1733022443307,0.00726521,96047.0,96046.0,0.48963802]
[1733022444188,0.00726521,96047.0,96046.0,0.30230356]
[1733022445511,0.00726521,96047.0,96046.0,0.09407056]
[1733022445866,0.00726521,96047.0,96046.0,0.28145974]
[1733022446091,0.00726521,96047.0,96046.0,0.09407056]
[1733022446861,0.00726521,96047.0,96046.0,0.22217056]
[1733022447465,0.00726521,96047.0,96046.0,0.22216485]
[1733022447695,0.00726521,96047.0,96046.0,0.20967331]
[1733022447896,0.00726521,96047.0,96046.0,0.39705606]
[1733022448065,0.00726521,96047.0,96046.0,0.20967331]
[1733022448511,0.00726521,96047.0,96046.0,0.39705524]
[1733022448955,0.00726521,96047.0,96046.0,0.34755524]
[1733022449622,0.00726521,96047.0,96046.0,0.16017331]
[1733022450055,0.00726521,96047.0,96046.0,0.34755524]
[1733022450474,0.00726521,96047.0,96046.0,0.16017331]
[1733022450676,0.00726521,96047.0,96046.0,0.16189951]
[1733022450887,0.00812831,96047.0,96046.0,0.16189951]
[1733022451738,0.00812831,96047.0,96046.0,0.34928144]
[1733022451938,0.00812831,96047.0,96046.0,0.16189951]
[1733022452616,0.00812831,96047.0,96046.0,0.34928144]
[1733022452889,0.00812831,96047.0,96046.0,0.16189951]
[1733022453202,0.00812831,96047.0,96046.0,0.34928144]
[1733022453409,0.00812831,96047.0,96046.0,0.16189951]
[1733022455881,0.00812831,96047.0,96046.0,0.08329951]
[1733022456318,0.00812831,96047.0,96046.0,0.01639285]
[1733022457442,0.208229,96048.0,96047.0,0.00885685]
[1733022457864,0.208229,96048.0,96047.0,0.01366499]
[1733022458934,0.210229,96048.0,96047.0,0.01366499]
[1733022459426,0.216229,96048.0,96047.0,0.01366499]
[1733022459646,0.216229,96048.0,96047.0,0.07159142]
[1733022463358,0.2170921,96048.0,96047.0,0.07159142]
[1733022465162,0.2170921,96048.0,96047.0,0.01366499]
[1733022465814,0.0088631,96048.0,96047.0,0.01366499]
[1733022466122,0.0088631,96048.0,96047.0,0.15420473]
[1733022466326,0.0088631,96048.0,96047.0,0.01366499]
[1733022467145,0.0028631,96048.0,96047.0,0.01366499]
[1733022467344,0.0028631,96048.0,96047.0,0.07988142]
[1733022467568,0.0048631,96048.0,96047.0,0.22042116]
[1733022468035,0.0058631,96048.0,96047.0,0.07988142]
[1733022468551,0.0048631,96048.0,96047.0,0.22041902]
[1733022468777,0.0048631,96048.0,96047.0,0.07988142]
[1733022468988,0.0058631,96048.0,96047.0,0.22041814]
[1733022469209,0.0058631,96048.0,96047.0,0.07988142]
[1733022469656,0.0058631,96048.0,96047.0,0.22041814]
[1733022470045,0.0058631,96048.0,96047.0,0.22041979]
[1733022470474,0.0058631,96048.0,96047.0,0.07988142]
[1733022470760,0.0058631,96048.0,96047.0,0.22042085]
[1733022470999,0.0008631,96048.0,96047.0,0.22042085]
[1733022471220,0.0018631,96048.0,96047.0,0.07988142]
[1733022471709,0.0008631,96048.0,96047.0,0.07988142]
[1733022472182,0.0058631,96048.0,96047.0,0.07988142]
[1733022472382,0.0058631,96048.0,96047.0,0.2204229]
[1733022472640,0.0018631,96048.0,96047.0,0.2204229]
[1733022472871,0.0048631,96048.0,96047.0,0.07988142]
[1733022473851,0.0048631,96048.0,96047.0,0.01366499]
[1733022475556,0.0048631,96048.0,96047.0,0.15420647]
[1733022478091,0.0048631,96048.0,96047.0,0.01366499]
[1733022478833,0.0048631,96048.0,96047.0,0.15420647]
[1733022479054,0.0048631,96048.0,96047.0,0.01366499]
[1733022479300,0.0048631,96048.0,96047.0,0.07159159]
[1733022479495,0.0499631,96048.0,96047.0,0.07159159]
[1733022480557,0.0048631,96048.0,96047.0,0.21213307]
[1733022480806,0.0048631,96048.0,96047.0,0.21213869]
[1733022481771,0.0048631,96048.0,96047.0,0.07159159]
[1733022482216,0.0038631,96048.0,96047.0,0.07159159]